[Event "Goteborg Open 2024"]
[Site "Goteborgs Schackcentrum, Vegatan 20, Gothenburg, Sweden"]
[Date "2024.08.02"]
[Round "4.11"]
[White "Madevan Vaishnavi, Yaashvan"]
[Black "Helin, Mikael"]
[Result "1-0"]
[TimeControl "15 minutes + 5 seconds per move from move one (Round 1 - 4) / 90 minutes + 30 seconds per move from move one (Round 5 - 8)"]
[BlackTitle "CM"]
[WhiteFideId "1772180"]
[BlackFideId "1703838"]
[WhiteElo "1684"]
[BlackElo "1937"]

1. e4 {[%clk 00:15:09]} d6 {[%clk 00:14:35]} {[%emt 00:00:36]} 2. d4 {[%clk
00:15:10]} {[%emt 00:00:03]} g6 {[%clk 00:14:34]} {[%emt 00:00:06]} 3. Be3
{[%clk 00:14:59]} {[%emt 00:00:16]} Bg7 {[%clk 00:14:37]} {[%emt 00:00:01]} 4.
Nc3 {[%clk 00:15:01]} {[%emt 00:00:03]} Nc6 {[%clk 00:14:40]} {[%emt 00:00:02]}
5. Qd2 {[%clk 00:14:52]} {[%emt 00:00:14]} h6 {[%clk 00:14:44]} 6. Nf3 {[%clk
00:14:13]} {[%emt 00:00:44]} e5 {[%clk 00:14:41]} {[%emt 00:00:07]} 7. dxe5
{[%clk 00:13:45]} {[%emt 00:00:34]} dxe5 {[%clk 00:14:45]} {[%emt 00:00:02]} 8.
Qxd8+ {[%clk 00:13:47]} {[%emt 00:00:03]} Nxd8 {[%clk 00:14:46]} {[%emt
00:00:04]} 9. Nb5 {[%clk 00:13:01]} {[%emt 00:00:50]} Ne6 {[%clk 00:14:50]}
{[%emt 00:00:01]} 10. Bc4 {[%clk 00:13:02]} {[%emt 00:00:05]} a6 {[%clk
00:14:42]} {[%emt 00:00:13]} 11. Bxe6 {[%clk 00:12:59]} {[%emt 00:00:08]} axb5
{[%clk 00:14:45]} {[%emt 00:00:02]} 12. Bxc8 {[%clk 00:12:30]} {[%emt
00:00:33]} Rxc8 {[%clk 00:14:49]} {[%emt 00:00:02]} 13. O-O-O {[%clk 00:12:20]}
{[%emt 00:00:16]} Ne7 {[%clk 00:14:27]} {[%emt 00:00:27]} 14. g4 {[%clk
00:11:56]} {[%emt 00:00:29]} f5 {[%clk 00:13:38]} {[%emt 00:00:54]} 15. gxf5
{[%clk 00:11:53]} {[%emt 00:00:08]} gxf5 {[%clk 00:13:42]} {[%emt 00:00:02]} 16.
exf5 {[%clk 00:11:22]} {[%emt 00:00:35]} Nxf5 {[%clk 00:13:45]} {[%emt
00:00:03]} 17. Rhe1 {[%clk 00:11:17]} {[%emt 00:00:09]} O-O {[%clk 00:13:31]}
{[%emt 00:00:19]} 18. Bc5 {[%clk 00:10:31]} {[%emt 00:00:50]} Rfe8 {[%clk
00:12:55]} {[%emt 00:00:41]} 19. Rd7 {[%clk 00:10:08]} {[%emt 00:00:29]} b6
{[%clk 00:12:46]} {[%emt 00:00:13]} 20. Be3 {[%clk 00:10:07]} {[%emt 00:00:07]}
Rf8 {[%clk 00:11:38]} {[%emt 00:01:12]} 21. Rg1 {[%clk 00:09:35]} {[%emt
00:00:37]} Rf7 {[%clk 00:11:35]} {[%emt 00:00:07]} 22. Rxf7 {[%clk 00:09:19]}
{[%emt 00:00:23]} Kxf7 {[%clk 00:11:37]} {[%emt 00:00:01]} 23. Rd1 {[%clk
00:09:02]} {[%emt 00:00:24]} Ke6 {[%clk 00:10:31]} {[%emt 00:01:09]} 24. c3
{[%clk 00:08:14]} {[%emt 00:00:55]} c5 {[%clk 00:10:25]} {[%emt 00:00:11]} 25.
Rg1 {[%clk 00:07:39]} {[%emt 00:00:40]} Rc7 {[%clk 00:09:59]} {[%emt 00:00:31]}
26. Kc2 {[%clk 00:06:43]} {[%emt 00:01:00]} Rf7 {[%clk 00:09:39]} {[%emt
00:00:26]} 27. Nd2 {[%clk 00:06:30]} {[%emt 00:00:18]} b4 {[%clk 00:08:44]}
{[%emt 00:01:01]} 28. cxb4 {[%clk 00:06:00]} {[%emt 00:00:35]} Nd4+ {[%clk
00:08:42]} {[%emt 00:00:06]} 29. Bxd4 {[%clk 00:05:46]} {[%emt 00:00:18]} cxd4
{[%clk 00:08:41]} {[%emt 00:00:06]} 30. Rg2 {[%clk 00:05:26]} {[%emt 00:00:25]}
Kd5 {[%clk 00:08:35]} {[%emt 00:00:11]} 31. f3 {[%clk 00:05:09]} {[%emt
00:00:22]} Rc7+ {[%clk 00:08:00]} {[%emt 00:00:39]} 32. Kd3 {[%clk 00:05:03]}
{[%emt 00:00:13]} b5 {[%clk 00:07:43]} {[%emt 00:00:22]} 33. Rg6 {[%clk
00:04:55]} {[%emt 00:00:10]} Bf8 {[%clk 00:07:16]} {[%emt 00:00:33]} 34. a3
{[%clk 00:04:54]} {[%emt 00:00:09]} Rc1 {[%clk 00:06:12]} {[%emt 00:01:08]} 35.
Rb6 {[%clk 00:04:30]} {[%emt 00:00:28]} Rh1 {[%clk 00:05:26]} {[%emt 00:00:50]}
36. Rxb5+ {[%clk 00:04:31]} {[%emt 00:00:05]} Ke6 {[%clk 00:05:31]} {[%emt
00:00:01]} 37. a4 {[%clk 00:03:36]} {[%emt 00:01:00]} h5 {[%clk 00:05:19]}
{[%emt 00:00:17]} 38. a5 {[%clk 00:03:29]} {[%emt 00:00:13]} Rxh2 {[%clk
00:05:21]} {[%emt 00:00:02]} 39. a6 {[%clk 00:03:31]} {[%emt 00:00:03]} Kf5
{[%clk 00:05:09]} {[%emt 00:00:16]} 40. a7 {[%clk 00:03:26]} {[%emt 00:00:11]}
Bh6 {[%clk 00:05:13]} 41. a8=Q {[%clk 00:02:46]} {[%emt 00:00:46]} Rxd2+ {[%clk
00:05:15]} {[%emt 00:00:02]} 42. Kc4 {[%clk 00:02:49]} {[%emt 00:00:03]} Rc2+
{[%clk 00:04:57]} {[%emt 00:00:22]} 43. Kb3 {[%clk 00:02:47]} {[%emt 00:00:06]}
d3 {[%clk 00:05:00]} {[%emt 00:00:02]} 44. Qe4+ {[%clk 00:02:50]} {[%emt
00:00:03]} 1-0

[Event "Goteborg Open 2024"]
[Site "Goteborgs Schackcentrum, Vegatan 20, Gothenburg, Sweden"]
[Date "2024.08.02"]
[Round "4.12"]
[White "Johansson, Stefan"]
[Black "Ottgard, Andreas"]
[Result "0-1"]
[TimeControl "15 minutes + 5 seconds per move from move one (Round 1 - 4) / 90 minutes + 30 seconds per move from move one (Round 5 - 8)"]
[WhiteFideId "1732242"]
[BlackFideId "1730592"]
[WhiteElo "1933"]
[BlackElo "1900"]

1. e4 {[%clk 00:15:08]} {[%emt 00:00:01]} d6 {[%clk 00:15:09]} {[%emt
00:00:02]} 2. d4 {[%clk 00:15:08]} {[%emt 00:00:04]} Nf6 {[%clk 00:15:12]}
{[%emt 00:00:02]} 3. Nc3 {[%clk 00:15:12]} {[%emt 00:00:02]} g6 {[%clk
00:15:14]} {[%emt 00:00:03]} 4. f4 {[%clk 00:15:12]} {[%emt 00:00:03]} Bg7
{[%clk 00:15:15]} {[%emt 00:00:06]} 5. Nf3 {[%clk 00:15:15]} {[%emt 00:00:02]}
c5 {[%clk 00:15:10]} {[%emt 00:00:10]} 6. dxc5 {[%clk 00:15:01]} {[%emt
00:00:19]} Qa5 {[%clk 00:15:09]} {[%emt 00:00:05]} 7. Bd3 {[%clk 00:15:01]}
{[%emt 00:00:04]} Qxc5 {[%clk 00:14:58]} {[%emt 00:00:17]} 8. Qe2 {[%clk
00:14:30]} {[%emt 00:00:35]} O-O {[%clk 00:14:29]} {[%emt 00:00:34]} 9. Be3
{[%clk 00:14:29]} {[%emt 00:00:07]} Qa5 {[%clk 00:14:26]} {[%emt 00:00:08]} 10.
O-O {[%clk 00:13:00]} {[%emt 00:01:34]} Nc6 {[%clk 00:14:02]} {[%emt 00:00:29]}
11. h3 {[%clk 00:12:16]} {[%emt 00:00:49]} a6 {[%clk 00:12:49]} {[%emt
00:01:19]} 12. Qf2 {[%clk 00:11:08]} {[%emt 00:01:12]} Nd7 {[%clk 00:11:34]}
{[%emt 00:01:20]} 13. Qh4 {[%clk 00:10:38]} {[%emt 00:00:35]} Bxc3 {[%clk
00:08:14]} {[%emt 00:03:26]} 14. bxc3 {[%clk 00:10:39]} {[%emt 00:00:02]} Qxc3
{[%clk 00:08:13]} {[%emt 00:00:09]} 15. f5 {[%clk 00:09:47]} {[%emt 00:00:56]}
Nf6 {[%clk 00:07:16]} {[%emt 00:01:02]} 16. Rad1 {[%clk 00:08:44]} {[%emt
00:01:07]} b5 {[%clk 00:06:46]} {[%emt 00:00:35]} 17. Bh6 {[%clk 00:07:26]}
{[%emt 00:01:24]} Rd8 {[%clk 00:06:09]} {[%emt 00:00:42]} 18. Ng5 {[%clk
00:07:17]} {[%emt 00:00:14]} Ne5 {[%clk 00:04:45]} {[%emt 00:01:29]} 19. fxg6
{[%clk 00:06:20]} {[%emt 00:01:01]} Nxg6 {[%clk 00:03:57]} {[%emt 00:00:54]} 20.
Qf2 {[%clk 00:05:11]} {[%emt 00:01:13]} Qc5 {[%clk 00:03:34]} {[%emt 00:00:28]}
21. Nf3 {[%clk 00:04:21]} {[%emt 00:00:56]} Qxf2+ {[%clk 00:03:25]} {[%emt
00:00:13]} 22. Rxf2 {[%clk 00:04:24]} {[%emt 00:00:03]} Bb7 {[%clk 00:03:23]}
{[%emt 00:00:07]} 23. Re2 {[%clk 00:04:18]} {[%emt 00:00:11]} Rac8 {[%clk
00:03:16]} {[%emt 00:00:12]} 24. Bg5 {[%clk 00:04:14]} {[%emt 00:00:08]} Nd7
{[%clk 00:03:04]} {[%emt 00:00:18]} 25. h4 {[%clk 00:04:08]} {[%emt 00:00:10]}
h5 {[%clk 00:02:49]} {[%emt 00:00:19]} 26. Nd4 {[%clk 00:04:02]} {[%emt
00:00:12]} Nde5 {[%clk 00:01:58]} {[%emt 00:00:56]} 27. g3 {[%clk 00:03:33]}
{[%emt 00:00:33]} Rd7 {[%clk 00:01:44]} {[%emt 00:00:20]} 28. Nf5 {[%clk
00:03:16]} {[%emt 00:00:22]} Nf3+ {[%clk 00:01:41]} {[%emt 00:00:08]} 29. Kf2
{[%clk 00:02:57]} {[%emt 00:00:25]} Nxg5 {[%clk 00:01:43]} {[%emt 00:00:02]} 30.
hxg5 {[%clk 00:03:01]} {[%emt 00:00:01]} e6 {[%clk 00:01:30]} {[%emt 00:00:19]}
31. Nd4 {[%clk 00:02:58]} {[%emt 00:00:08]} Kg7 {[%clk 00:01:24]} {[%emt
00:00:09]} 32. Rh1 {[%clk 00:02:54]} {[%emt 00:00:09]} Rh8 {[%clk 00:01:21]}
{[%emt 00:00:09]} 33. Ke3 {[%clk 00:02:51]} {[%emt 00:00:08]} Ne5 {[%clk
00:01:19]} {[%emt 00:00:06]} 34. Kf4 {[%clk 00:02:38]} {[%emt 00:00:18]} Ng4
{[%clk 00:01:18]} {[%emt 00:00:06]} 35. Kf3 {[%clk 00:01:50]} {[%emt 00:00:54]}
Kg6 {[%clk 00:01:13]} {[%emt 00:00:10]} 36. Rd2 {[%clk 00:01:30]} {[%emt
00:00:26]} Kxg5 {[%clk 00:01:13]} {[%emt 00:00:04]} 37. Re1 {[%clk 00:01:21]}
{[%emt 00:00:13]} Rdd8 {[%clk 00:00:45]} {[%emt 00:00:33]} 38. Bf1 {[%clk
00:01:24]} {[%emt 00:00:02]} Ne5+ {[%clk 00:00:46]} {[%emt 00:00:05]} 39. Kf2
{[%clk 00:01:22]} {[%emt 00:00:06]} Kg6 {[%clk 00:00:16]} {[%emt 00:00:36]} 40.
Bh3 {[%clk 00:01:24]} {[%emt 00:00:03]} Ng4+ {[%clk 00:00:14]} {[%emt
00:00:07]} 41. Bxg4 {[%clk 00:01:12]} {[%emt 00:02:13]} hxg4 {[%clk 00:01:13]}
{[%emt 00:00:03]} 42. Ke3 {[%clk 00:00:51]} {[%emt 00:00:26]} Rc8 {[%clk
00:01:09]} {[%emt 00:00:08]} 43. Kd3 {[%clk 00:00:46]} {[%emt 00:00:10]} Rh3
{[%clk 00:01:02]} {[%emt 00:00:13]} 44. Rg1 {[%clk 00:00:49]} {[%emt 00:00:02]}
Rch8 {[%clk 00:01:01]} {[%emt 00:00:05]} 45. Ne2 {[%clk 00:00:44]} {[%emt
00:00:11]} Rh2 {[%clk 00:00:59]} {[%emt 00:00:07]} 46. Nf4+ {[%clk 00:00:47]}
{[%emt 00:00:02]} Kf6 {[%clk 00:01:02]} {[%emt 00:00:02]} 47. Rxh2 {[%clk
00:00:42]} {[%emt 00:00:10]} Rxh2 {[%clk 00:01:06]} {[%emt 00:00:02]} 48. Rf1
{[%clk 00:00:45]} {[%emt 00:00:01]} Ke7 {[%clk 00:01:04]} {[%emt 00:00:06]} 49.
Ne2 {[%clk 00:00:39]} {[%emt 00:00:11]} Bxe4+ {[%clk 00:00:56]} {[%emt
00:00:14]} 50. Kxe4 {[%clk 00:00:40]} {[%emt 00:00:04]} Rxe2+ {[%clk 00:00:59]}
{[%emt 00:00:02]} 51. Kd3 {[%clk 00:00:44]} Rg2 {[%clk 00:00:59]} 0-1

[Event "Goteborg Open 2024"]
[Site "Goteborgs Schackcentrum, Vegatan 20, Gothenburg, Sweden"]
[Date "2024.08.02"]
[Round "4.13"]
[White "Bergdahl, Daniel"]
[Black "Fransson, Lennart"]
[Result "1/2-1/2"]
[TimeControl "15 minutes + 5 seconds per move from move one (Round 1 - 4) / 90 minutes + 30 seconds per move from move one (Round 5 - 8)"]
[WhiteFideId "1780921"]
[BlackFideId "1706756"]
[WhiteElo "1689"]
[BlackElo "1926"]

1. e4 {[%clk 00:15:09]} Nf6 {[%clk 00:15:07]} {[%emt 00:00:04]} 2. e5 {[%clk
00:15:13]} {[%emt 00:00:01]} Nd5 {[%clk 00:15:11]} {[%emt 00:00:01]} 3. d4
{[%clk 00:15:17]} {[%emt 00:00:01]} d6 {[%clk 00:15:14]} {[%emt 00:00:01]} 4.
exd6 {[%clk 00:15:19]} {[%emt 00:00:03]} cxd6 {[%clk 00:15:17]} {[%emt
00:00:02]} 5. Nf3 {[%clk 00:15:22]} {[%emt 00:00:02]} Bg4 {[%clk 00:15:14]}
{[%emt 00:00:07]} 6. Bc4 {[%clk 00:15:21]} {[%emt 00:00:07]} Nf6 {[%clk
00:15:08]} {[%emt 00:00:11]} 7. c3 {[%clk 00:15:12]} {[%emt 00:00:15]} d5
{[%clk 00:15:04]} {[%emt 00:00:07]} 8. Bb5+ {[%clk 00:15:11]} {[%emt 00:00:06]}
Nc6 {[%clk 00:15:07]} {[%emt 00:00:03]} 9. Qa4 {[%clk 00:15:01]} {[%emt
00:00:16]} Qb6 {[%clk 00:14:14]} {[%emt 00:00:57]} 10. Ne5 {[%clk 00:14:28]}
{[%emt 00:00:38]} Bd7 {[%clk 00:13:58]} {[%emt 00:00:21]} 11. Nxd7 {[%clk
00:14:30]} {[%emt 00:00:03]} Nxd7 {[%clk 00:14:01]} {[%emt 00:00:03]} 12. O-O
{[%clk 00:14:14]} {[%emt 00:00:20]} a6 {[%clk 00:13:56]} {[%emt 00:00:10]} 13.
Na3 {[%clk 00:14:11]} {[%emt 00:00:09]} e6 {[%clk 00:13:32]} {[%emt 00:00:28]}
14. Bxc6 {[%clk 00:13:59]} {[%emt 00:00:17]} Qxc6 {[%clk 00:13:28]} {[%emt
00:00:09]} 15. Qxc6 {[%clk 00:14:01]} {[%emt 00:00:03]} bxc6 {[%clk 00:13:31]}
{[%emt 00:00:02]} 16. Nc2 {[%clk 00:14:03]} {[%emt 00:00:03]} Bd6 {[%clk
00:13:31]} {[%emt 00:00:05]} 17. b4 {[%clk 00:14:03]} {[%emt 00:00:05]} f6
{[%clk 00:13:13]} {[%emt 00:00:22]} 18. Re1 {[%clk 00:13:58]} {[%emt 00:00:11]}
Kf7 {[%clk 00:13:16]} {[%emt 00:00:02]} 19. f4 {[%clk 00:13:53]} {[%emt
00:00:10]} Rhb8 {[%clk 00:12:58]} {[%emt 00:00:23]} 20. g4 {[%clk 00:13:49]}
{[%emt 00:00:10]} a5 {[%clk 00:12:57]} {[%emt 00:00:06]} 21. f5 {[%clk
00:13:31]} {[%emt 00:00:23]} e5 {[%clk 00:12:46]} {[%emt 00:00:15]} 22. dxe5
{[%clk 00:13:28]} {[%emt 00:00:08]} Nxe5 {[%clk 00:12:34]} {[%emt 00:00:16]} 23.
Nd4 {[%clk 00:13:07]} {[%emt 00:00:27]} axb4 {[%clk 00:12:26]} {[%emt
00:00:13]} 24. cxb4 {[%clk 00:13:06]} {[%emt 00:00:06]} Rxb4 {[%clk 00:12:21]}
{[%emt 00:00:10]} 25. Be3 {[%clk 00:12:39]} {[%emt 00:00:32]} Rxd4 {[%clk
00:12:20]} {[%emt 00:00:06]} 26. Bxd4 {[%clk 00:12:38]} {[%emt 00:00:07]} Nf3+
{[%clk 00:12:24]} 27. Kf2 {[%clk 00:12:25]} {[%emt 00:00:17]} Nxd4 {[%clk
00:12:12]} {[%emt 00:00:17]} 28. Red1 {[%clk 00:11:59]} {[%emt 00:00:31]} Ra4
{[%clk 00:11:14]} {[%emt 00:01:04]} 29. h3 {[%clk 00:11:31]} {[%emt 00:00:32]}
Nb5 {[%clk 00:10:46]} {[%emt 00:00:33]} 30. Rdc1 {[%clk 00:11:23]} {[%emt
00:00:13]} c5 {[%clk 00:09:58]} {[%emt 00:00:53]} 31. Rc2 {[%clk 00:11:17]}
{[%emt 00:00:11]} c4 {[%clk 00:09:42]} {[%emt 00:00:21]} 32. Rb1 {[%clk
00:10:44]} {[%emt 00:00:38]} Bc5+ {[%clk 00:09:36]} {[%emt 00:00:11]} 33. Kg2
{[%clk 00:10:42]} {[%emt 00:00:08]} Nd4 {[%clk 00:08:12]} {[%emt 00:01:28]} 34.
Rb7+ {[%clk 00:10:37]} {[%emt 00:00:11]} Kf8 {[%clk 00:06:55]} {[%emt
00:01:20]} 35. Rcb2 {[%clk 00:10:30]} {[%emt 00:00:13]} Ra8 {[%clk 00:06:46]}
{[%emt 00:00:13]} 36. Rc7 {[%clk 00:10:24]} {[%emt 00:00:13]} c3 {[%clk
00:06:31]} {[%emt 00:00:19]} 37. Rbb7 {[%clk 00:10:19]} {[%emt 00:00:10]} Rxa2+
{[%clk 00:05:47]} {[%emt 00:00:49]} 38. Kf1 {[%clk 00:09:50]} {[%emt 00:00:34]}
Ra1+ {[%clk 00:04:49]} {[%emt 00:01:03]} 39. Kg2 {[%clk 00:09:37]} {[%emt
00:00:17]} Ra2+ {[%clk 00:02:35]} {[%emt 00:02:20]} 40. Kf1 {[%clk 00:09:24]}
{[%emt 00:00:18]} Ra1+ {[%clk 00:02:18]} {[%emt 00:00:22]} 41. Kg2 {[%clk
00:09:27]} {[%emt 00:00:02]} Ra2+ {[%clk 00:02:22]} 1/2-1/2

[Event "Goteborg Open 2024"]
[Site "Goteborgs Schackcentrum, Vegatan 20, Gothenburg, Sweden"]
[Date "2024.08.02"]
[Round "4.14"]
[White "Evertsson, David"]
[Black "Garby, Jacob"]
[Result "1-0"]
[TimeControl "15 minutes + 5 seconds per move from move one (Round 1 - 4) / 90 minutes + 30 seconds per move from move one (Round 5 - 8)"]
[WhiteFideId "1777424"]
[BlackFideId "1786520"]
[WhiteElo "1642"]
[BlackElo "1895"]

1. e4 {[%clk 00:15:08]} {[%emt 00:00:01]} c6 {[%clk 00:15:09]} {[%emt
00:00:02]} 2. d4 {[%clk 00:15:11]} {[%emt 00:00:02]} d5 {[%clk 00:15:13]}
{[%emt 00:00:01]} 3. exd5 {[%clk 00:15:14]} {[%emt 00:00:03]} cxd5 {[%clk
00:15:16]} {[%emt 00:00:01]} 4. c4 {[%clk 00:15:17]} {[%emt 00:00:03]} Nf6
{[%clk 00:14:49]} {[%emt 00:00:31]} 5. Nc3 {[%clk 00:15:20]} {[%emt 00:00:02]}
Bf5 {[%clk 00:14:27]} {[%emt 00:00:27]} 6. Qb3 {[%clk 00:15:03]} {[%emt
00:00:22]} b6 {[%clk 00:11:27]} {[%emt 00:03:06]} 7. cxd5 {[%clk 00:14:42]}
{[%emt 00:00:25]} Ne4 {[%clk 00:10:52]} {[%emt 00:00:39]} 8. Bb5+ {[%clk
00:11:43]} {[%emt 00:03:05]} Nd7 {[%clk 00:10:48]} {[%emt 00:00:10]} 9. Bf4
{[%clk 00:10:30]} {[%emt 00:01:17]} g6 {[%clk 00:08:55]} {[%emt 00:01:59]} 10.
Bc6 {[%clk 00:07:03]} {[%emt 00:03:32]} Rc8 {[%clk 00:07:45]} {[%emt 00:01:14]}
11. Bb7 {[%clk 00:07:06]} {[%emt 00:00:02]} Ndf6 {[%clk 00:05:34]} {[%emt
00:02:16]} 12. Bxc8 {[%clk 00:07:02]} {[%emt 00:00:09]} Qxc8 {[%clk 00:04:42]}
{[%emt 00:00:58]} 13. Nf3 {[%clk 00:06:47]} {[%emt 00:00:19]} Nxc3 {[%clk
00:03:58]} {[%emt 00:00:49]} 14. bxc3 {[%clk 00:06:47]} {[%emt 00:00:04]} Qd7
{[%clk 00:03:19]} {[%emt 00:00:44]} 15. c4 {[%clk 00:06:10]} {[%emt 00:00:43]}
Bg7 {[%clk 00:03:10]} {[%emt 00:00:14]} 16. Ne5 {[%clk 00:05:26]} {[%emt
00:00:49]} Qb7 {[%clk 00:02:22]} {[%emt 00:00:53]} 17. Qb5+ {[%clk 00:03:59]}
{[%emt 00:01:33]} Nd7 {[%clk 00:02:14]} {[%emt 00:00:13]} 18. O-O {[%clk
00:03:38]} {[%emt 00:00:25]} O-O {[%clk 00:02:02]} {[%emt 00:00:17]} 19. Nc6
{[%clk 00:02:48]} {[%emt 00:00:55]} Nf6 {[%clk 00:01:13]} {[%emt 00:00:55]} 20.
Rfe1 {[%clk 00:01:25]} {[%emt 00:01:28]} Re8 {[%clk 00:01:05]} {[%emt
00:00:14]} 21. d6 {[%clk 00:00:43]} {[%emt 00:00:47]} exd6 {[%clk 00:00:12]}
{[%emt 00:00:58]} 22. Bxd6 {[%clk 00:00:17]} {[%emt 00:00:32]} Ne4 {[%clk
00:00:10]} {[%emt 00:00:06]} 23. Be5 {[%clk 00:00:17]} {[%emt 00:00:04]} Bd7
{[%clk 00:00:10]} {[%emt 00:00:06]} 24. d5 {[%clk 00:00:11]} {[%emt 00:00:10]}
1-0

[Event "Goteborg Open 2024"]
[Site "Goteborgs Schackcentrum, Vegatan 20, Gothenburg, Sweden"]
[Date "2024.08.02"]
[Round "4.15"]
[White "Mohammed, Safian Haj"]
[Black "Olsson, Jonas"]
[Result "1-0"]
[TimeControl "15 minutes + 5 seconds per move from move one (Round 1 - 4) / 90 minutes + 30 seconds per move from move one (Round 5 - 8)"]
[WhiteFideId "1729276"]
[BlackFideId "1734415"]
[WhiteElo "1890"]
[BlackElo "1741"]

1. e4 {[%clk 00:15:10]} {[%emt 00:29:11]} e5 {[%clk 00:15:07]} {[%emt
00:00:03]} 2. Nf3 {[%clk 00:15:13]} {[%emt 00:00:02]} Nc6 {[%clk 00:15:09]}
{[%emt 00:00:02]} 3. Bb5 {[%clk 00:15:17]} {[%emt 00:00:03]} a6 {[%clk
00:15:13]} 4. Ba4 {[%clk 00:15:20]} Nf6 {[%clk 00:15:03]} {[%emt 00:00:14]} 5.
d3 {[%clk 00:15:22]} {[%emt 00:00:05]} b5 {[%clk 00:14:55]} {[%emt 00:00:12]} 6.
Bb3 {[%clk 00:15:26]} d5 {[%clk 00:14:37]} {[%emt 00:00:25]} 7. exd5 {[%clk
00:15:16]} {[%emt 00:00:14]} Nxd5 {[%clk 00:14:38]} {[%emt 00:00:03]} 8. O-O
{[%clk 00:15:00]} {[%emt 00:00:22]} Bg4 {[%clk 00:14:13]} {[%emt 00:00:30]} 9.
h3 {[%clk 00:14:56]} {[%emt 00:00:09]} Bh5 {[%clk 00:14:09]} {[%emt 00:00:09]}
10. Re1 {[%clk 00:14:52]} {[%emt 00:00:09]} Be7 {[%clk 00:13:00]} {[%emt
00:01:14]} 11. a4 {[%clk 00:14:40]} {[%emt 00:00:17]} b4 {[%clk 00:12:31]}
{[%emt 00:00:33]} 12. g4 {[%clk 00:14:16]} {[%emt 00:00:30]} Bg6 {[%clk
00:12:23]} {[%emt 00:00:13]} 13. Nxe5 {[%clk 00:14:18]} {[%emt 00:00:03]} Nxe5
{[%clk 00:12:09]} {[%emt 00:00:18]} 14. Rxe5 {[%clk 00:14:21]} {[%emt
00:00:03]} c6 {[%clk 00:11:38]} {[%emt 00:00:36]} 15. Qe2 {[%clk 00:14:05]}
{[%emt 00:00:21]} Ra7 {[%clk 00:10:55]} {[%emt 00:00:48]} 16. Be3 {[%clk
00:12:20]} {[%emt 00:01:50]} Nxe3 {[%clk 00:10:37]} {[%emt 00:00:23]} 17. Qxe3
{[%clk 00:12:05]} {[%emt 00:00:20]} O-O {[%clk 00:10:27]} {[%emt 00:00:16]} 18.
Qxa7 {[%clk 00:11:58]} {[%emt 00:00:12]} Bd6 {[%clk 00:09:23]} {[%emt
00:01:07]} 19. Re1 {[%clk 00:11:47]} {[%emt 00:00:18]} Qf6 {[%clk 00:08:59]}
{[%emt 00:00:28]} 20. Qe3 {[%clk 00:11:25]} {[%emt 00:00:27]} Bf4 {[%clk
00:08:25]} {[%emt 00:00:39]} 21. Qe2 {[%clk 00:09:30]} {[%emt 00:02:00]} Qh4
{[%clk 00:06:43]} {[%emt 00:01:47]} 22. Qf3 {[%clk 00:09:30]} {[%emt 00:00:05]}
Bd6 {[%clk 00:05:52]} {[%emt 00:00:55]} 23. Nd2 {[%clk 00:09:26]} {[%emt
00:00:10]} Kh8 {[%clk 00:05:26]} {[%emt 00:00:31]} 24. Re2 {[%clk 00:09:12]}
{[%emt 00:00:19]} f5 {[%clk 00:04:55]} {[%emt 00:00:36]} 25. Nc4 {[%clk
00:08:03]} {[%emt 00:01:14]} Bb8 {[%clk 00:04:21]} {[%emt 00:00:39]} 26. Ne5
{[%clk 00:07:29]} {[%emt 00:00:40]} Qg5 {[%clk 00:03:15]} {[%emt 00:01:09]} 27.
Nxg6+ {[%clk 00:07:21]} {[%emt 00:00:14]} Qxg6 {[%clk 00:03:13]} {[%emt
00:00:08]} 28. Rae1 {[%clk 00:07:17]} {[%emt 00:00:08]} h5 {[%clk 00:02:48]}
{[%emt 00:00:29]} 29. Re6 {[%clk 00:06:45]} {[%emt 00:00:39]} Qg5 {[%clk
00:02:29]} {[%emt 00:00:23]} 30. Re8 {[%clk 00:05:48]} {[%emt 00:01:02]} Qf6
{[%clk 00:01:52]} {[%emt 00:00:41]} 31. Rxf8+ {[%clk 00:05:43]} {[%emt
00:00:11]} Qxf8 {[%clk 00:01:55]} {[%emt 00:00:02]} 32. Qxf5 {[%clk 00:05:33]}
{[%emt 00:00:15]} Qd6 {[%clk 00:01:47]} {[%emt 00:00:13]} 33. Re8+ {[%clk
00:05:31]} {[%emt 00:00:06]} 1-0